bitfinex/quotes_ETHUSD_20240716
["timestamp","ask_amount","ask_price","bid_price","bid_amount"]
[1721117299536,20.8322269,3390.1,3390.0,132.696033]
[1721117300130,22.25794411,3390.1,3390.0,132.696033]
[1721117300345,22.56595834,3390.1,3390.0,132.696033]
[1721117300637,19.61619834,3390.1,3390.0,132.696033]
[1721117301145,25.89600692,3390.1,3390.0,132.696033]
[1721117301504,24.06595834,3390.1,3390.0,132.696033]
[1721117301704,25.89600692,3390.1,3390.0,132.696033]
[1721117302342,22.77886246,3390.1,3390.0,132.696033]
[1721117302506,24.06610717,3390.1,3390.0,132.696033]
[1721117302712,27.01586717,3390.1,3390.0,132.696033]
[1721117302928,27.01591541,3390.1,3390.0,132.696033]
[1721117303521,25.51591541,3390.1,3390.0,132.696033]
[1721117303709,27.01591541,3390.1,3390.0,132.696033]
[1721117304343,24.64671541,3390.1,3390.0,125.1126693]
[1721117304639,24.64671541,3390.1,3390.0,121.00539406]
[1721117305143,27.89147541,3390.1,3390.0,121.00539406]
[1721117305317,27.89147541,3390.1,3390.0,120.45539406]
[1721117305318,26.69738908,3390.1,3390.0,120.45539406]
[1721117305520,28.35180489,3390.1,3390.0,120.45539406]
[1721117306511,30.86158835,3390.1,3390.0,120.45539406]
[1721117306708,32.44480489,3390.1,3390.0,95.27239406]
[1721117307050,31.2283301,3390.1,3390.0,95.27239406]
[1721117307207,28.19776224,3390.1,3390.0,95.27239406]
[1721117307523,28.3518171,3390.1,3390.0,94.72239406]
[1721117308037,28.19776224,3390.1,3390.0,94.72239406]
[1721117308445,28.35182106,3390.1,3390.0,94.72239406]
[1721117308669,31.15715495,3390.1,3390.0,94.72239406]
[1721117308816,35.69655308,3390.1,3390.0,94.72239406]
[1721117309138,32.01247169,3390.1,3390.0,91.77253406]
[1721117309321,27.91947169,3390.1,3390.0,87.09186406]
[1721117309643,31.84719269,3390.1,3390.0,39.71853373]
[1721117309855,31.69313387,3390.1,3390.0,33.81633373]
[1721117310031,31.69313387,3390.1,3390.0,19.06449373]
[1721117310209,34.54989387,3390.1,3390.0,11.68738373]
[1721117310541,34.61731198,3390.1,3390.0,8.1414383]
[1721117310746,34.24973398,3390.1,3390.0,3.7166483]
[1721117310945,5.9051,3386.9,3386.8,2.4911]
[1721117311314,2.95247,3387.0,3386.8,2.4911]
[1721117311641,0.4813637,3387.3,3387.0,2.4949]
[1721117311844,0.4813637,3387.8,3387.2,4.093]
[1721117312019,2.95193,3387.7,3387.2,4.093]
[1721117312440,2.95212,3387.4,3387.2,4.093]
[1721117312624,2.95206,3387.5,3387.2,4.093]
[1721117312625,2.95186,3387.7,3387.2,4.093]
[1721117312809,2.95177,3387.8,3387.2,4.093]
[1721117313011,3.0,3387.7,3387.0,2.4949]
[1721117313212,3.0,3387.9,3387.7,4.093]
[1721117313449,5.9517,3387.9,3387.8,2.4547]
[1721117313624,3.0,3387.9,3387.8,2.4547]
[1721117313949,0.4813637,3388.6,3387.9,2.4547]
[1721117314149,2.94999,3389.9,3388.5,4.093]
[1721117314150,0.4813637,3389.0,3388.5,4.093]
[1721117314447,3.4320837,3389.0,3388.9,4.093]
[1721117314647,3.4317337,3389.4,3388.9,4.093]
[1721117315144,3.4317337,3389.4,3389.0,2.4369]
[1721117315145,2.95049,3389.3,3389.0,2.4369]
[1721117315353,5.90103,3389.3,3389.0,2.4369]
[1721117315547,2.95063,3389.1,3389.0,2.4369]
[1721117315715,2.95049,3389.3,3389.0,2.4369]
[1721117315920,0.4813637,3389.4,3389.0,2.4369]
[1721117316156,0.4813637,3389.4,3389.0,3.08989]
[1721117316470,0.4813637,3390.1,3389.0,3.08989]
[1721117316769,2.94979,3390.1,3389.7,4.093]
[1721117317048,2.94967,3390.2,3389.7,4.093]
[1721117317344,2.94987,3390.0,3389.8,2.3858]
[1721117317653,2.94967,3390.2,3389.8,2.3858]
[1721117317845,3.0,3390.1,3389.8,2.3858]
[1721117318052,0.91735412,3390.3,3389.8,2.3858]
[1721117318348,0.91735412,3390.3,3390.0,4.093]
[1721117318553,3.86696412,3390.3,3390.0,4.093]
[1721117318847,0.91735412,3390.3,3390.0,4.093]
[1721117319453,6.86695412,3390.3,3390.0,3.993]
[1721117319650,5.94968,3390.2,3390.0,3.993]
[1721117319860,2.94976,3390.1,3390.0,3.993]
[1721117320148,3.0,3390.1,3390.0,3.993]
[1721117320336,3.0,3390.2,3390.0,3.993]
[1721117320538,0.91735412,3390.3,3390.0,3.993]
[1721117321053,3.86695412,3390.3,3390.0,3.993]
[1721117321252,5.94969,3390.2,3390.0,3.993]
[1721117321450,5.89944,3390.2,3390.0,3.993]
[1721117321651,3.0,3390.1,3390.0,3.993]
[1721117321946,5.94976,3390.1,3390.0,3.993]
[1721117322124,8.89952,3390.1,3390.0,3.993]
[1721117322325,2.94993,3389.9,3389.8,2.3858]
[1721117322751,5.94979,3390.1,3389.8,2.3858]
[1721117322977,2.94993,3389.9,3389.8,2.3858]
[1721117323332,3.0,3390.1,3389.8,2.3858]
[1721117323519,2.94958,3390.4,3389.8,2.3858]
[1721117323722,3.0,3390.3,3390.0,4.093]
[1721117324334,5.94962,3390.3,3390.0,4.093]
[1721117324535,2.94968,3390.2,3390.0,4.093]
[1721117324735,3.0,3390.1,3390.0,4.093]
[1721117324943,3.0,3390.3,3390.0,4.093]
[1721117325156,3.0,3390.4,3390.0,4.093]
[1721117325735,5.94958,3390.4,3390.0,4.093]
[1721117326048,2.94969,3390.2,3390.0,4.093]
[1721117326457,3.0,3390.1,3390.0,4.093]
[1721117327345,5.94976,3390.1,3390.0,4.093]
[1721117327566,2.94991,3390.0,3389.8,2.3858]
[1721117327863,2.94993,3389.9,3389.8,2.3858]
[1721117328051,5.94978,3390.1,3389.8,2.3858]
[1721117328262,2.94993,3389.9,3389.8,2.3858]
[1721117328966,2.9502,3389.6,3389.5,4.093]
[1721117330833,2.9502,3389.6,3389.2,2.3803]
[1721117331293,3.0,3390.4,3389.2,2.3803]
[1721117331432,2.95001,3389.9,3389.2,2.3803]
[1721117331633,3.0,3389.8,3389.5,4.093]
[1721117331896,0.30839274,3390.4,3389.6,2.4705]
[1721117332189,0.4813637,3390.5,3390.4,2.4705]
[1721117332334,2.94932,3390.7,3390.4,2.4705]
[1721117332527,0.4813637,3391.0,3390.4,2.4705]
[1721117333149,3.4303737,3391.0,3390.4,2.4705]
[1721117333350,0.89936144,3391.1,3390.4,2.4705]
[1721117336460,2.94898,3391.0,3390.4,2.4705]
[1721117336867,0.89936144,3391.1,3390.4,2.4705]
[1721117337193,2.94907,3390.9,3390.4,2.4705]
[1721117337365,0.89936144,3391.1,3390.4,2.4705]
[1721117337675,2.94934,3390.6,3390.4,2.4705]
[1721117338003,1.28668315,3391.0,3390.4,2.4705]
[1721117338004,2.94932,3390.7,3390.4,2.4705]
[1721117338578,2.94941,3390.5,3390.4,2.4705]
[1721117338885,5.89882,3390.5,3390.4,2.4705]
[1721117339178,8.89882,3390.5,3390.4,2.4705]
[1721117339580,2.94971,3390.2,3389.8,6.3453]
[1721117340779,2.94976,3390.1,3389.8,6.3453]
[1721117341277,5.94943,3390.5,3389.8,6.3453]
[1721117341653,2.9495,3390.4,3389.8,6.3453]
[1721117341851,2.94969,3390.2,3389.8,6.3453]
[1721117342475,3.0,3390.5,3389.8,2.2523]
[1721117342663,2.94993,3389.9,3389.8,2.2523]
[1721117343902,2.95025,3389.6,3389.3,4.093]
[1721117345393,2.95031,3389.5,3389.3,4.093]
[1721117346598,2.95014,3389.7,3389.3,4.093]
[1721117347460,3.0,3389.9,3389.4,2.2653]
[1721117347654,5.94968,3390.2,3389.4,2.2653]
[1721117348464,2.94984,3390.1,3389.4,2.2653]
[1721117348675,5.94988,3390.0,3389.4,2.2653]
[1721117348884,2.95005,3389.8,3389.4,2.2653]
[1721117349193,3.0,3390.2,3389.4,2.2653]
[1721117349194,2.94978,3390.1,3389.4,2.2653]
[1721117349365,3.0,3390.0,3389.4,2.2653]
[1721117349564,3.0,3390.0,3389.8,4.093]
[1721117349787,3.4309737,3390.3,3389.8,4.093]
[1721117349788,3.0,3390.2,3389.8,4.093]
[1721117349988,2.94993,3389.9,3389.4,2.2653]
[1721117350285,2.95018,3389.7,3389.4,2.2653]
[1721117350683,2.95028,3389.5,3389.4,2.2653]
[1721117351275,2.95021,3389.6,3389.4,2.2653]
[1721117351885,2.95028,3389.5,3389.4,2.2653]
[1721117352705,2.95004,3389.8,3389.4,2.2653]
[1721117353256,2.94986,3390.0,3389.4,2.2653]
[1721117353512,3.0,3390.2,3389.8,4.093]
[1721117353674,3.0,3390.2,3389.9,2.4924]
[1721117353872,0.4813637,3390.3,3389.9,2.4924]
[1721117354067,2.94956,3390.4,3389.9,2.4924]
[1721117354596,0.4813637,3390.7,3389.9,2.4924]
[1721117354794,2.94973,3390.2,3389.9,2.4924]
[1721117354994,2.94985,3390.0,3389.9,2.4924]
[1721117355184,2.95022,3389.6,3389.3,2.3458]
[1721117355696,2.94996,3389.9,3389.3,2.3458]
[1721117355895,2.94959,3390.3,3389.3,2.3458]
[1721117356064,4.28690223,3390.2,3389.3,2.3458]
[1721117356260,1.28690223,3390.1,3389.7,4.093]
[1721117356797,1.28690223,3390.1,3389.8,2.3713]
[1721117357612,1.28690223,3390.0,3389.8,2.3713]
[1721117357901,1.28677797,3389.9,3389.8,2.3713]
[1721117358203,1.22140301,3390.5,3389.8,3.01773]
[1721117358371,2.65719998,3390.4,3390.2,4.093]
[1721117358570,1.28671964,3390.3,3390.2,4.093]
[1721117358966,1.28671964,3390.3,3389.8,2.3713]
[1721117359169,0.14904148,3390.2,3389.8,2.3713]
[1721117359398,2.65716413,3390.1,3389.8,2.3713]
[1721117359599,2.65715946,3390.0,3389.8,2.3713]
[1721117359782,1.28671964,3389.9,3389.8,2.3713]
[1721117360678,2.50812265,3389.9,3389.8,2.3713]
[1721117360895,2.94968,3390.2,3389.8,2.3713]
[1721117361097,1.22845859,3389.9,3389.8,2.3713]
[1721117361282,0.14914053,3389.9,3389.8,2.3713]
[1721117361478,1.22923168,3390.1,3389.8,2.3713]
[1721117361689,1.43587357,3390.0,3389.8,2.3713]
[1721117361903,1.28673304,3389.9,3389.8,2.3713]
[1721117362279,1.28673304,3390.0,3389.8,2.3713]
[1721117362485,1.28673304,3389.9,3389.8,2.3713]
[1721117362681,1.37841107,3389.9,3389.8,2.3713]
[1721117362885,2.66514411,3389.9,3389.8,2.3713]
[1721117364207,2.66522504,3389.9,3389.8,2.3713]
[1721117364406,5.61515504,3389.9,3389.8,2.3713]
[1721117364606,7.33585336,3389.9,3389.8,2.3713]
[1721117364807,7.33585336,3389.9,3389.3,2.3283]
[1721117364808,2.95037,3389.4,3389.3,2.3283]
[1721117365012,4.38636336,3389.4,3389.3,2.3283]
[1721117366413,1.43599336,3389.4,3388.7,6.5748]
[1721117366592,4.48635191,3388.8,3388.7,2.4818]
[1721117366792,7.33777336,3388.8,3388.7,2.4818]
[1721117367089,3.10006939,3388.8,3388.7,2.4818]
[1721117367407,5.9227296,3388.8,3388.7,2.4818]
[1721117368111,7.33830508,3388.8,3388.7,2.4818]
[1721117368480,7.33830508,3388.8,3388.2,6.427]
[1721117368481,2.95113,3388.6,3388.2,6.427]
[1721117368689,5.46597462,3388.5,3388.2,6.427]
[1721117368904,1.28734569,3388.4,3388.2,6.427]
[1721117369787,4.23860569,3388.4,3388.2,6.427]
[1721117370114,1.28734569,3388.3,3388.2,6.427]
[1721117370283,1.28742721,3388.3,3388.2,6.427]
[1721117370786,1.22746893,3388.4,3388.2,6.427]
[1721117370787,2.95125,3388.4,3388.2,6.427]
[1721117370992,1.28734104,3388.3,3388.2,6.427]
[1721117371712,2.95109,3388.6,3388.2,6.427]
[1721117371920,4.23854472,3388.5,3388.2,6.427]
[1721117372219,1.28735472,3388.4,3388.2,6.427]
[1721117372592,4.17858893,3388.6,3388.2,6.427]
[1721117372924,1.28734077,3388.5,3388.2,6.427]
[1721117373114,4.17836893,3388.8,3388.2,6.427]
[1721117373292,1.28732346,3388.7,3388.4,2.2793]
[1721117373494,1.22746893,3389.3,3388.7,2.2793]
[1721117373841,1.22746893,3389.6,3389.2,4.093]
[1721117373997,1.28693283,3389.5,3389.3,2.2793]
[1721117374521,1.22746893,3389.4,3389.3,2.2793]
[1721117374821,2.51440176,3389.4,3389.3,2.2793]
[1721117375022,1.28693283,3389.4,3389.3,2.2793]
[1721117375225,2.95073,3389.0,3388.7,4.093]
[1721117375431,1.28693283,3388.9,3388.7,4.093]
[1721117375625,2.95046,3389.3,3388.8,2.2672]
[1721117375798,1.28707556,3389.2,3388.8,2.2672]
[1721117375997,2.9502,3389.6,3388.8,2.2672]
[1721117375998,1.22608953,3389.8,3389.1,4.093]
[1721117376200,2.51298808,3389.7,3389.2,2.8527]
[1721117376406,1.22608953,3389.7,3389.2,2.3027]
[1721117376607,1.28697001,3389.6,3389.2,2.3027]
[1721117376994,2.95038,3389.4,3389.2,2.3027]
[1721117377198,1.28693176,3389.3,3389.2,2.3027]
[1721117377400,2.95038,3389.4,3389.2,2.3027]
[1721117377603,1.28702128,3389.3,3389.2,2.3027]
[1721117378113,1.22608953,3389.6,3389.2,2.3027]
[1721117378319,3.0,3390.0,3389.2,2.3027]
[1721117378320,1.22608953,3390.0,3389.3,2.3893]
[1721117378515,1.28682064,3389.9,3389.7,2.4497]
[1721117379075,1.22608953,3390.2,3389.7,2.4497]
[1721117379198,1.2867276,3390.1,3389.7,2.4497]
[1721117379560,1.22686667,3390.4,3390.1,2.4497]
[1721117379701,1.28664415,3390.3,3390.1,2.4497]
[1721117379899,1.22686667,3390.7,3390.1,2.4497]
[1721117380149,1.28658697,3390.6,3390.1,2.4497]
[1721117380312,1.28658697,3390.5,3390.1,2.4497]
[1721117380507,1.53358333,3390.9,3390.5,4.093]
[1721117380508,1.22686667,3390.8,3390.5,4.093]
[1721117380756,1.28658155,3390.7,3390.5,4.093]
[1721117382698,1.28657544,3390.6,3390.5,4.093]
[1721117383106,1.28657544,3390.7,3390.5,4.093]
[1721117383411,3.4302637,3391.1,3390.5,4.093]
[1721117383412,1.22686667,3391.0,3390.5,6.4542]
[1721117383714,1.28646582,3390.9,3390.6,5.31052]
[1721117383901,0.4813637,3391.1,3390.8,4.093]
[1721117384101,1.28637738,3391.0,3390.8,4.093]
[1721117384339,3.0,3391.4,3390.8,4.093]
[1721117384340,4.22686667,3391.4,3390.8,4.093]
[1721117384528,1.28633097,3391.3,3390.8,4.093]
[1721117384920,2.51319764,3391.3,3390.8,4.093]
[1721117385126,1.28633097,3391.2,3390.8,4.093]
[1721117385430,3.0,3391.4,3390.8,4.093]
[1721117385431,1.28635064,3391.1,3390.8,4.093]
[1721117385732,7.17550667,3391.4,3390.8,4.093]
[1721117385938,5.46198416,3391.3,3390.8,4.093]
[1721117386140,4.17563667,3391.3,3390.8,4.093]
[1721117386323,1.28638986,3391.2,3390.8,4.093]
[1721117386506,4.22636971,3391.4,3390.9,2.267]
[1721117386707,1.28635179,3391.3,3390.9,2.267]
[1721117387737,7.17497971,3391.5,3390.9,2.267]
[1721117387938,4.2350025,3391.4,3390.9,2.267]
[1721117388122,4.2350525,3391.3,3390.9,2.267]
[1721117388326,1.2863325,3391.2,3390.9,2.267]
[1721117388525,2.94864,3391.4,3390.9,2.267]
[1721117389045,1.28634003,3391.3,3390.9,2.267]
[1721117389419,4.23507003,3391.3,3390.9,2.267]
[1721117389618,2.94873,3391.3,3390.9,2.267]
[1721117392423,1.28642076,3391.2,3390.9,2.267]
[1721117392629,4.78488219,3392.0,3390.9,2.903]
[1721117392630,1.22447479,3391.8,3390.9,2.903]
[1721117392945,2.9485,3391.6,3390.9,2.267]
[1721117393149,1.2862685,3391.5,3390.9,2.267]
[1721117393320,2.94871,3391.4,3390.9,2.267]
[1721117393522,4.17278479,3391.8,3390.9,2.267]
[1721117393828,1.22447479,3391.6,3390.9,2.267]
[1721117394026,2.94891,3391.1,3390.9,2.267]
[1721117395325,2.94876,3391.3,3390.9,2.267]
[1721117395538,2.94884,3391.2,3390.9,2.267]
[1721117396245,5.89734,3391.4,3390.9,2.267]
[1721117396751,2.9489,3391.1,3390.9,2.267]
[1721117397424,2.94898,3391.0,3390.9,2.267]
[1721117398034,4.17317479,3391.4,3390.4,2.2874]
[1721117398245,2.94925,3390.7,3390.4,2.2874]
[1721117399137,2.94935,3390.6,3390.4,2.2874]
[1721117399337,2.94935,3390.6,3390.3,4.093]
[1721117399338,2.94967,3390.3,3389.9,2.471]
[1721117399592,2.94977,3390.1,3389.9,2.471]
[1721117399876,5.8997,3390.0,3389.9,2.471]
[1721117400169,2.94985,3390.0,3389.9,2.471]
[1721117400366,2.94969,3390.2,3389.9,2.471]
[1721117400672,2.94959,3390.3,3389.9,2.471]
[1721117400826,3.0,3390.2,3389.9,2.471]
[1721117401158,2.94985,3390.0,3389.9,2.471]
[1721117402162,5.94968,3390.2,3389.9,2.471]
[1721117402660,3.0,3390.2,3389.9,2.471]
[1721117403273,2.94978,3390.1,3389.9,2.471]
[1721117403580,2.94985,3390.0,3389.9,2.471]
[1721117404782,2.94973,3390.2,3389.9,2.471]
[1721117405278,2.94985,3390.0,3389.9,2.471]
[1721117405473,2.94973,3390.2,3389.9,2.471]
[1721117405676,5.94951,3390.4,3389.9,2.471]
[1721117405977,1.28685874,3390.3,3389.9,2.471]
[1721117406379,4.23651874,3390.3,3389.9,2.471]
[1721117406581,3.0,3390.2,3389.9,2.471]
[1721117406796,2.94968,3390.2,3389.9,2.471]
[1721117407281,2.94985,3390.0,3389.9,2.471]
[1721117407755,4.2869422,3390.0,3389.4,2.4855]
[1721117407954,2.9502,3389.6,3389.4,2.4855]
[1721117408954,2.95004,3389.8,3389.4,2.4855]
[1721117409162,2.95011,3389.7,3389.4,2.4855]
[1721117409476,2.95021,3389.6,3389.4,2.4855]
[1721117410193,0.4813637,3390.1,3389.4,2.4855]
[1721117410351,2.95009,3389.8,3389.4,2.4855]
[1721117411051,2.94985,3390.0,3389.4,2.4855]
[1721117411490,2.95,3389.9,3389.4,2.4855]
[1721117411864,0.4813637,3390.1,3389.7,3.073]
[1721117412064,3.0,3390.3,3389.7,3.073]
[1721117412380,3.0,3390.3,3390.1,3.073]
[1721117412575,3.0,3390.3,3390.2,2.46]
[1721117413959,0.4813637,3390.6,3390.2,2.46]
[1721117414214,1.28677143,3390.5,3390.2,2.46]
[1721117414365,4.23626257,3390.4,3390.2,2.46]
[1721117414714,1.28676041,3390.3,3390.2,2.46]
[1721117414878,4.28676041,3390.3,3390.2,2.46]
[1721117415589,3.0,3390.3,3390.2,2.46]
[1721117415772,3.0,3390.5,3390.2,2.46]
[1721117415971,1.2867126,3390.4,3390.2,2.46]
[1721117416804,3.0,3390.5,3390.2,2.46]
[1721117417030,1.28670682,3390.4,3390.2,2.46]
[1721117417178,1.28670461,3390.4,3390.2,2.46]
[1721117417382,2.50924327,3390.4,3390.2,2.46]
[1721117417564,4.28670461,3390.3,3390.2,2.46]
[1721117417914,1.28670461,3390.3,3390.2,2.46]
[1721117418118,4.28670461,3390.3,3390.2,2.46]
[1721117419202,5.50924327,3390.3,3390.2,2.46]
[1721117419679,4.22253866,3390.3,3390.2,2.46]
[1721117420004,5.50931345,3390.3,3390.2,2.46]
[1721117420997,8.45890345,3390.3,3390.2,2.46]
[1721117421174,7.23636479,3390.3,3390.2,2.46]
[1721117421501,7.23636479,3390.3,3389.8,2.4298]
[1721117421502,2.94975,3390.2,3389.8,2.4298]
[1721117421663,2.51020321,3390.1,3389.8,2.4298]
[1721117421888,1.28677479,3390.0,3389.8,2.4298]
[1721117422067,1.28677479,3389.9,3389.8,2.4298]
[1721117422496,1.28677479,3390.0,3389.8,2.4298]
[1721117423069,1.22342842,3390.2,3389.8,2.4298]
[1721117423267,1.28676755,3390.1,3389.8,2.4298]
[1721117423988,1.28676755,3390.1,3389.8,2.98008]
[1721117424201,1.28676755,3390.1,3389.9,2.2608]
[1721117424399,0.4813637,3390.5,3390.0,2.94985]
[1721117424718,1.22342842,3390.9,3390.4,2.4214]
[1721117424998,1.22342842,3391.0,3390.8,3.073]
[1721117425167,1.22342842,3391.0,3390.9,2.4301]
[1721117425568,1.22342842,3391.1,3390.9,2.4301]
[1721117426702,1.22384685,3391.1,3390.9,2.4301]
[1721117427075,1.22384685,3391.1,3390.9,1.82475836]
[1721117427504,1.70521055,3391.2,3390.9,2.3145342]
[1721117427691,1.22384685,3391.4,3390.9,2.3145342]
[1721117428001,1.22384685,3391.5,3391.3,3.073]
[1721117428699,1.22384685,3391.6,3391.3,3.073]
[1721117429105,1.22384685,3391.6,3391.3,3.3803]
[1721117429305,1.22384685,3391.7,3391.3,3.3803]
[1721117429505,0.4813637,3391.9,3391.3,3.3803]
[1721117429506,1.70521055,3391.9,3391.6,3.073]
[1721117429706,0.4813637,3391.9,3391.6,3.073]
[1721117430008,0.4813637,3391.9,3391.7,2.3623]
[1721117430175,1.22384685,3392.1,3391.7,2.3623]
[1721117430375,1.22384685,3392.1,3392.0,3.073]
[1721117431709,3.0,3392.2,3392.0,3.073]
[1721117431710,4.22384685,3392.2,3392.0,3.073]
[1721117431944,1.22384685,3392.2,3392.0,3.073]
[1721117432092,1.22384685,3392.5,3392.1,2.2513]
[1721117432277,1.22384685,3392.6,3392.1,2.2513]
[1721117432630,1.22384685,3392.8,3392.1,2.2513]
[1721117432978,1.22384685,3392.6,3392.1,2.2513]
[1721117433407,1.22384685,3392.7,3392.1,2.2513]
[1721117434386,1.22384685,3392.8,3392.1,2.2513]
[1721117434589,4.22384685,3392.8,3392.1,2.2513]
[1721117435180,7.17125685,3392.8,3392.1,2.2513]
[1721117436529,3.0,3392.8,3392.1,2.2513]
[1721117436672,4.70521055,3392.9,3392.1,3.13291]
[1721117436878,4.70521055,3392.9,3392.4,3.073]
[1721117437094,2.94744,3392.8,3392.4,3.073]
[1721117438325,4.22384685,3392.9,3391.6,5.3504]
[1721117438326,2.94804,3392.1,3391.6,5.3504]
[1721117438481,2.94785,3392.3,3391.6,5.3504]
[1721117438878,0.4813637,3392.5,3392.0,3.073]
[1721117439101,0.4813637,3392.5,3392.4,3.073]
[1721117439307,3.0401112,3392.7,3392.4,3.073]
[1721117439886,2.94725,3393.0,3392.5,2.3202]
[1721117440120,3.4285237,3393.1,3392.8,3.073]
[1721117440290,2.94725,3393.0,3392.8,3.073]
[1721117441594,12.45,3393.4,3392.8,3.073]
[1721117441595,5.36812532,3393.4,3392.8,3.073]
[1721117441799,1.52230098,3393.7,3392.8,3.073]
[1721117442520,1.21915603,3393.6,3392.8,3.073]
[1721117442719,2.94723,3393.1,3392.8,3.073]
[1721117443800,4.16585603,3393.7,3392.5,2.3202]
[1721117443801,2.94741,3392.9,3392.5,2.3202]
[1721117443989,2.94759,3392.6,3392.0,3.073]
[1721117445692,5.89584,3392.3,3392.0,3.073]
[1721117445892,2.94792,3392.3,3392.0,3.073]
[1721117446109,2.94771,3392.5,3392.0,3.073]
[1721117446431,2.94776,3392.4,3392.0,3.073]
[1721117446811,2.94785,3392.3,3392.0,3.073]
[1721117447026,2.94794,3392.2,3391.7,2.3202]
[1721117447231,2.94811,3392.0,3391.7,2.3202]
[1721117448051,2.94837,3391.7,3391.6,3.073]
[1721117448452,2.94837,3391.7,3391.2,5.3744]
[1721117448659,7.37,3392.3,3391.2,5.3744]
[1721117448856,2.94835,3391.8,3391.2,5.3744]
[1721117449072,2.94838,3391.7,3391.2,5.3744]
[1721117449357,2.94847,3391.6,3391.2,5.3744]
[1721117449830,2.9485,3391.6,3391.2,5.3744]
[1721117450174,2.94843,3391.7,3391.2,5.3744]
[1721117451461,1.25926723,3392.2,3391.2,5.3744]
[1721117451645,2.94872,3391.3,3390.8,5.3744]
[1721117451959,10.31835,3391.8,3390.8,5.3744]
[1721117452257,10.31835,3391.8,3389.7,2.3014]
[1721117452258,2.94894,3391.1,3389.7,2.3014]
[1721117452572,2.94894,3391.1,3390.6,3.073]
[1721117453050,2.94894,3391.1,3390.7,2.3014]
[1721117453521,5.9884812,3391.7,3390.7,2.3014]
[1721117453522,2.94898,3391.0,3390.7,2.3014]
[1721117453851,5.9885412,3391.7,3390.7,2.3014]
[1721117454152,2.94911,3390.9,3390.7,2.3014]
[1721117454314,2.94894,3391.1,3390.7,2.3014]
[1721117454536,2.94899,3391.0,3390.7,2.3014]
[1721117455132,2.94908,3390.9,3390.7,2.3014]
[1721117455535,1.21915603,3391.4,3390.3,2.3014]
[1721117455881,2.94941,3390.6,3389.9,2.3776]
[1721117456064,2.9495,3390.4,3389.9,2.3776]
[1721117456579,1.21915603,3390.9,3389.9,2.3776]
[1721117456580,2.94924,3390.7,3389.9,2.3776]
[1721117456934,2.94951,3390.4,3389.9,2.3776]
[1721117457191,14.84253129,3391.1,3389.9,2.3776]
[1721117457192,1.21915603,3390.8,3389.9,2.3776]
[1721117457337,0.04005884,3390.7,3389.9,2.3776]
[1721117457539,2.94976,3390.1,3389.9,2.3776]
[1721117458370,2.94985,3390.0,3389.9,2.3776]
[1721117460640,2.94959,3390.3,3389.9,2.3776]
[1721117460971,1.25921487,3390.7,3389.9,2.3776]
[1721117460972,2.94969,3390.2,3389.9,2.3776]
[1721117461348,2.94935,3390.6,3389.9,2.3776]
[1721117461545,2.94942,3390.5,3389.9,2.3776]
[1721117462469,2.98930884,3390.7,3389.9,2.3776]
[1721117462662,3.0,3390.6,3389.9,2.3776]
[1721117463050,0.04005884,3390.7,3390.2,3.073]
[1721117463252,0.04005884,3390.7,3389.9,2.92266]
[1721117463253,7.37,3391.1,3390.6,3.073]
[1721117463458,2.94891,3391.1,3390.6,3.073]
[1721117463860,2.94915,3390.8,3390.3,2.4566]
[1721117464141,1.5247654,3391.4,3390.3,2.4566]
[1721117464142,1.21973425,3391.4,3390.3,2.4566]
[1721117464401,2.94883,3391.2,3390.6,3.073]
[1721117464680,2.94898,3391.0,3390.6,3.073]
[1721117464891,2.94872,3391.3,3390.6,3.073]
[1721117464892,2.94885,3391.2,3390.6,3.073]
[1721117465079,2.94872,3391.3,3390.6,3.073]
[1721117465080,2.94892,3391.1,3390.6,3.073]
[1721117465582,2.94899,3391.0,3390.6,3.073]
[1721117465943,2.94899,3391.0,3390.3,2.4566]
[1721117467956,2.94914,3390.9,3390.3,2.4566]
[1721117468144,2.94899,3391.0,3390.3,2.4566]
[1721117468775,1.21985967,3391.3,3390.3,2.4566]
[1721117468776,2.94931,3390.7,3390.3,2.4566]
[1721117468953,5.89862,3390.7,3390.3,2.4566]
[1721117469146,2.94944,3390.5,3390.3,2.4566]
[1721117469658,2.94944,3390.5,3389.9,2.4585]
[1721117470049,2.9496,3390.3,3389.9,2.4585]
[1721117470256,2.94985,3390.0,3389.9,2.4585]
[1721117470455,2.94985,3390.0,3389.5,2.2844]
[1721117470887,2.95003,3389.8,3389.5,2.2844]
[1721117471050,2.95003,3389.8,3389.1,2.2844]
[1721117472013,2.9502,3389.6,3389.1,2.2844]
[1721117472353,2.94985,3390.0,3389.4,3.073]
[1721117472759,2.95003,3389.8,3389.4,3.073]
[1721117473087,2.94985,3390.0,3389.4,3.073]
[1721117473482,2.94995,3389.9,3389.4,3.073]
[1721117474098,2.95013,3389.7,3389.4,3.073]
[1721117474511,2.95022,3389.6,3389.4,3.073]
[1721117475858,2.95022,3389.6,3389.1,2.2844]
[1721117476056,2.95031,3389.5,3389.1,2.2844]
[1721117476958,2.94972,3390.2,3388.7,2.4106]
[1721117476959,2.95039,3389.4,3388.7,2.4106]
[1721117477164,2.95064,3389.1,3388.7,2.4106]
[1721117478007,2.95072,3389.0,3388.7,2.4106]
[1721117478857,2.95089,3388.8,3388.7,2.4106]
[1721117479262,2.95099,3388.7,3388.3,2.4106]
[1721117479499,2.95072,3389.0,3388.3,2.95896]
[1721117480793,2.95072,3389.0,3388.6,3.073]
[1721117480995,2.9507,3389.1,3388.6,3.073]